bitfinex-derivatives/quotes_BTCF0:USTF0_20251217
["timestamp","ask_amount","ask_price","bid_price","bid_amount"]
[1765986360437,3e-08,88560.0,88543.0,0.00016937]
[1765986360438,3e-08,88560.0,88552.0,0.74372]
[1765986360639,3e-08,88560.0,88557.0,0.3608]
[1765986360838,0.011,88581.0,88565.0,0.0112935]
[1765986361044,0.011,88581.0,88571.0,0.34413]
[1765986361239,0.3718,88601.0,88572.0,0.74396]
[1765986361441,0.3718,88601.0,88586.0,0.3608]
[1765986361739,0.3718,88601.0,88552.0,0.0112951]
[1765986361740,0.0112927,88572.0,88571.0,0.0769833]
[1765986361941,0.3608,88583.0,88571.0,0.7708533]
[1765986362144,0.3608,88575.0,88546.0,1.41344]
[1765986362347,0.3608,88556.0,88547.0,0.7438]
[1765986362646,0.0112913,88583.0,88547.0,0.7438]
[1765986362647,0.0112906,88589.0,88560.0,0.0112942]
[1765986362950,0.3608,88600.0,88529.0,0.3608]
[1765986362951,0.0112951,88553.0,88529.0,0.3608]
[1765986363257,0.3608,88543.0,88523.0,0.74396]
[1765986363439,0.0112995,88519.0,88516.0,3e-08]
[1765986363642,0.3608,88525.0,88506.0,1e-08]
[1765986363643,0.3608,88517.0,88506.0,1e-08]
[1765986363856,0.0113016,88502.0,88496.0,9e-08]
[1765986364038,0.0113024,88496.0,88473.0,0.03025424]
[1765986364237,0.85146,88480.0,88466.0,0.01130371]
[1765986364441,0.3608,88471.0,88466.0,0.01130371]
[1765986364642,0.01142847,88479.0,88466.0,0.01130371]
[1765986364643,0.00012387,88479.0,88466.0,0.01130371]
[1765986364842,0.3608,88473.0,88466.0,0.01130371]
[1765986365248,0.3608,88475.0,88466.0,0.01130371]
[1765986365551,0.54059166,88500.0,88466.0,0.01130371]
[1765986365766,0.3608,88469.0,88456.0,0.01130499]
[1765986365953,0.3608,88489.0,88470.0,0.00099999]
[1765986366149,0.3608,88515.0,88490.0,0.00099999]
[1765986366345,0.0113017,88502.0,88469.0,0.3608]
[1765986366542,0.3608,88515.0,88501.0,0.35827]
[1765986366847,0.3608,88515.0,88499.0,0.00016947]
[1765986367152,0.00016947,88517.0,88499.0,0.00016947]
[1765986367153,0.3608,88505.0,88499.0,7e-08]
[1765986367555,0.3608,88510.0,88499.0,7e-08]
[1765986367849,0.3608,88500.0,88499.0,7e-08]
[1765986368556,0.3608,88500.0,88486.0,0.0113036]
[1765986368753,0.3608,88525.0,88499.0,0.3608]
[1765986368955,0.3608,88525.0,88500.0,0.74408]
[1765986369259,0.0113016,88502.0,88493.0,0.74396]
[1765986369445,0.3608,88496.0,88489.0,0.00016947]
[1765986369642,0.3608,88494.0,88489.0,0.00016947]
[1765986369858,0.3718,88531.0,88493.0,0.3608]
[1765986370045,0.3718,88531.0,88518.0,0.3608]
[1765986370246,0.011,88531.0,88518.0,0.3498]
[1765986370456,0.3608,88530.0,88518.0,0.0112995]
[1765986370762,0.3608,88559.0,88529.0,0.3608]
[1765986370945,0.00016947,88549.0,88529.0,1.19861]
[1765986371146,0.00016947,88549.0,88536.0,0.0112972]
[1765986371343,0.3608,88548.0,88537.0,0.7442]
[1765986371551,0.3608,88559.0,88537.0,0.7442]
[1765986371755,0.3608,88540.0,88531.0,0.00016947]
[1765986371951,0.3608,88532.0,88531.0,0.00016947]
[1765986372151,0.3608,88540.0,88531.0,0.00016947]
[1765986372352,0.3608,88538.0,88531.0,0.36096947]
[1765986372562,0.7216,88538.0,88513.0,0.3608]
[1765986372747,0.0112997,88517.0,88500.0,1.10504]
[1765986373056,0.41690315,88540.0,88501.0,0.03265578]
[1765986373057,0.34413,88503.0,88501.0,0.03265578]
[1765986373289,0.3608,88531.0,88516.0,3e-08]
[1765986373640,0.00016947,88532.0,88516.0,0.36080003]
[1765986373847,0.0112956,88549.0,88523.0,0.0112988]
[1765986374157,0.011,88551.0,88516.0,3e-08]
[1765986374158,0.3608,88536.0,88516.0,3e-08]
[1765986374343,0.0112998,88516.0,88515.0,1e-07]
[1765986374659,0.3608,88517.0,88496.0,0.01129988]
[1765986374858,0.34413,88506.0,88497.0,0.03254443]
[1765986375057,0.34413,88506.0,88498.0,3e-08]
[1765986375258,0.26078,88506.0,88496.0,0.01129988]
[1765986375451,0.52588,88545.0,88496.0,0.01129988]
[1765986375452,0.3608,88526.0,88501.0,0.3608]
[1765986375651,0.3608,88526.0,88496.0,0.01129988]
[1765986375854,0.3608,88517.0,88496.0,0.01129988]
[1765986376054,0.3608,88526.0,88496.0,0.01129988]
[1765986376055,0.3608,88515.0,88496.0,0.01129988]
[1765986376249,0.3608,88504.0,88486.0,0.01130116]
[1765986376450,0.36096947,88504.0,88476.0,0.84911244]
[1765986376651,0.3608,88519.0,88501.0,0.3608]
[1765986376851,0.3608,88519.0,88509.0,0.3608]
[1765986377056,0.3608,88530.0,88509.0,0.3608]
[1765986377260,0.89474,88537.0,88504.0,0.3608]
[1765986377261,0.3608,88518.0,88504.0,0.3608]
[1765986377560,0.34413,88518.0,88505.0,0.0113011]
[1765986377754,0.3608,88554.0,88516.0,0.3608]
[1765986378057,0.3608,88554.0,88505.0,0.0113012]
[1765986378058,0.3608,88554.0,88530.0,1.19861]
[1765986378246,0.3718,88551.0,88532.0,0.0112978]
[1765986378455,1e-07,88561.0,88549.0,0.0112955]
[1765986378662,1e-07,88561.0,88560.0,0.3608]
[1765986378960,0.011,88571.0,88560.0,0.3608]
[1765986379261,0.08921605,88601.0,88570.0,1.19861]
[1765986379562,0.3718,88591.0,88578.0,0.3608]
[1765986379764,0.3718,88591.0,88579.0,0.74444]
[1765986379765,0.011,88591.0,88579.0,0.74444]
[1765986380153,0.011,88591.0,88586.0,0.3608]
[1765986380355,0.0112905,88589.0,88570.0,0.74424]
[1765986380559,0.3608,88590.0,88570.0,0.74424]
[1765986380759,0.011,88601.0,88587.0,0.0112907]
[1765986380760,0.3608,88598.0,88587.0,0.0112907]
[1765986381067,1.25554,88588.0,88554.0,0.3608]
[1765986381361,0.89474,88554.0,88526.0,5e-08]
[1765986381565,0.0112987,88525.0,88506.0,2e-08]
[1765986381759,0.3608,88514.0,88507.0,0.00016937]
[1765986382064,0.3608,88514.0,88486.0,0.01130116]
[1765986382065,0.011301,88508.0,88486.0,0.01130116]
[1765986382358,0.7216,88514.0,88500.0,0.3608]
[1765986382359,0.0113003,88513.0,88500.0,0.3608]
[1765986382553,0.0112991,88522.0,88500.0,0.3608]
[1765986382749,0.3608,88504.0,88488.0,0.3608]
[1765986382954,0.3608,88536.0,88503.0,0.7216]
[1765986383154,0.3608,88536.0,88486.0,0.01130116]
[1765986383155,0.3608,88506.0,88486.0,0.01130116]
[1765986383354,0.34413,88496.0,88486.0,0.01130116]
[1765986383663,0.3608,88525.0,88495.0,0.3608]
[1765986383859,0.89474,88544.0,88520.0,0.3608]
[1765986383860,0.3608,88531.0,88520.0,0.3608]
[1765986384062,0.3608,88542.0,88520.0,0.3608]
[1765986384063,0.36096931,88534.0,88520.0,0.3608]
[1765986384262,0.0112952,88553.0,88528.0,0.3608]
[1765986384557,0.02291531,88561.0,88546.0,0.3498]
[1765986384756,0.011,88561.0,88539.0,0.3608]
[1765986384960,0.3608,88554.0,88539.0,0.3608]
[1765986385160,0.3608,88554.0,88540.0,0.74496]
[1765986385363,0.0112962,88545.0,88520.0,0.74484]
[1765986385770,0.0112962,88545.0,88519.0,0.0112994]
[1765986385771,0.0112972,88537.0,88518.0,0.3608]
[1765986386263,0.3608,88542.0,88519.0,0.3608]
[1765986386463,0.32746,88534.0,88522.0,6e-08]
[1765986386658,0.32746,88534.0,88486.0,0.01130116]
[1765986386659,0.0113024,88497.0,88486.0,0.01130116]
[1765986386856,0.34587302,88489.0,88476.0,2.5e-06]
[1765986387057,0.34587302,88489.0,88477.0,0.02993638]
[1765986387258,0.33457783,88489.0,88478.0,0.02993638]
[1765986387566,0.33457783,88489.0,88466.0,9e-08]
[1765986387567,0.0113052,88474.0,88466.0,9e-08]
[1765986387759,0.3608,88468.0,88466.0,9e-08]
[1765986387959,0.3608,88481.0,88466.0,9e-08]
[1765986388155,0.0113063,88466.0,88453.0,0.00010599]
[1765986388359,0.3608,88457.0,88453.0,0.00010599]
[1765986388659,0.31079,88457.0,88453.0,0.00010599]
[1765986388858,0.29412,88457.0,88453.0,0.00010599]
[1765986389058,0.3608,88467.0,88453.0,0.00010599]
[1765986389262,0.3608,88467.0,88435.0,0.83781]
[1765986389263,0.7216,88454.0,88426.0,0.01130883]
[1765986389563,0.7216,88427.0,88396.0,0.83781]
[1765986389754,0.3608,88438.0,88416.0,0.01131011]
[1765986389959,0.3608,88419.0,88416.0,0.01131011]
[1765986390167,0.00010599,88418.0,88416.0,0.01131011]
[1765986390469,0.00010599,88418.0,88416.0,1.1e-07]
[1765986390775,0.0113131,88413.0,88408.0,0.00016957]
[1765986391063,0.00010599,88418.0,88408.0,0.72160007]
[1765986391368,0.0223107,88431.0,88408.0,0.72160007]
[1765986391369,6e-08,88431.0,88417.0,0.7216]
[1765986391561,6e-08,88431.0,88426.0,0.3608]
[1765986391867,6e-08,88431.0,88417.0,0.3721125]
[1765986391868,6e-08,88431.0,88417.0,0.3608]
[1765986392063,0.36080006,88431.0,88417.0,0.3608]
[1765986392255,0.3608,88422.0,88408.0,7e-08]
[1765986392454,0.3608,88412.0,88408.0,7e-08]
[1765986393067,6e-08,88431.0,88411.0,0.3608]
[1765986393266,0.011,88421.0,88411.0,0.3498]
[1765986393457,0.3608,88422.0,88403.0,0.34980007]
[1765986394253,0.3608,88422.0,88390.0,1.83030315]
[1765986394254,0.3608,88414.0,88397.0,0.011315]
[1765986394463,7e-08,88414.0,88413.0,0.3608]
[1765986395273,7e-08,88414.0,88397.0,0.00016967]
[1765986395572,0.3608,88407.0,88397.0,0.00016967]
[1765986395767,0.3608,88398.0,88397.0,0.00016967]
[1765986395971,0.34949124,88421.0,88398.0,0.0113149]
[1765986396179,0.3608,88425.0,88397.0,0.36096967]
[1765986396361,0.0113116,88424.0,88400.0,0.41690315]
[1765986396668,0.3608,88422.0,88407.0,0.3608]
[1765986397069,0.3608,88422.0,88405.0,0.3608]
[1765986397273,0.3608,88422.0,88398.0,0.14160424]
[1765986397274,0.3608,88419.0,88398.0,0.14160424]
[1765986397470,0.3608,88408.0,88399.0,0.14160424]
[1765986397683,0.0113152,88396.0,88386.0,0.01131395]
[1765986397968,0.0113152,88396.0,88356.0,0.84912779]
[1765986397969,0.70493,88400.0,88374.0,0.0113179]
[1765986398173,0.34413,88400.0,88382.0,0.3608]
[1765986398371,0.34413,88400.0,88375.0,3e-08]
[1765986398372,0.3608,88389.0,88375.0,3e-08]
[1765986398567,0.3608,88381.0,88361.0,0.3608]
[1765986398771,0.0113199,88360.0,88356.0,9e-08]
[1765986399071,0.34863049,88358.0,88343.0,0.3608]
[1765986399485,0.00010693,88357.0,88343.0,0.3608]
[1765986399774,0.89474,88407.0,88357.0,0.83781]
[1765986399967,0.011,88421.0,88345.0,0.0566085]
[1765986399968,0.011,88421.0,88397.0,0.3608]
[1765986400160,0.0223133,88411.0,88382.0,0.3608]
[1765986400361,0.011,88411.0,88382.0,0.3608]
[1765986400576,0.3718,88411.0,88400.0,0.3608]
[1765986400872,0.3718,88411.0,88372.0,0.0113181]
[1765986400873,0.3608,88402.0,88386.0,0.00016977]
[1765986401063,0.3608,88394.0,88386.0,0.00016977]
[1765986401269,0.3608,88394.0,88371.0,0.0113183]
[1765986401466,0.3608,88401.0,88386.0,0.3608]
[1765986401670,0.00016977,88404.0,88377.0,0.3608]
[1765986401873,0.00016977,88404.0,88366.0,0.895009]
[1765986401874,0.00016977,88404.0,88394.0,0.3721153]
[1765986402076,7e-08,88411.0,88402.0,0.3608]
[1765986402369,0.3721137,88408.0,88370.0,0.41690315]
[1765986402569,0.25525,88425.0,88407.0,0.0113137]
[1765986402768,0.10330437,88463.0,88420.0,0.3608]
[1765986402769,0.3608,88444.0,88420.0,0.3608]
[1765986403072,6e-08,88451.0,88449.0,0.0113083]
[1765986403285,6e-08,88451.0,88430.0,0.0113108]
[1765986403286,0.25525,88499.0,88450.0,1.98925]
[1765986403474,0.0113043,88482.0,88451.0,0.74524]
[1765986403775,0.0113043,88482.0,88400.0,0.41790314]
[1765986403776,0.0113071,88459.0,88433.0,0.74548]
[1765986403980,0.0113079,88454.0,88433.0,0.74548]
[1765986404268,0.0113063,88465.0,88436.0,0.01131]
[1765986404473,0.0113079,88453.0,88442.0,0.00016957]
[1765986404663,0.0113079,88454.0,88442.0,7e-08]
[1765986404863,0.25541947,88459.0,88406.0,0.01131139]
[1765986405067,0.0113097,88440.0,88416.0,1e-08]
[1765986405266,0.0565379,88456.0,88386.0,0.01131395]
[1765986405267,6.85e-06,88402.0,88386.0,0.01131395]
[1765986405466,0.2372,88424.0,88386.0,0.01131395]
[1765986405678,0.0113146,88401.0,88386.0,5e-08]
[1765986405865,0.0113148,88400.0,88386.0,5e-08]
[1765986406065,9e-08,88402.0,88392.0,0.0113156]
[1765986406368,9e-08,88402.0,88385.0,0.00016969]
[1765986406369,9e-08,88402.0,88385.0,4e-08]
[1765986406775,9e-08,88402.0,88394.0,0.0113153]
[1765986406971,9e-08,88402.0,88385.0,4e-08]
[1765986407162,9e-08,88402.0,88401.0,0.3721145]
[1765986407363,0.0113098,88439.0,88401.0,0.3608]
[1765986407570,0.3608,88430.0,88405.0,0.3608]
[1765986407772,0.0293992,88429.0,88405.0,0.3608]
[1765986408164,0.3608,88407.0,88376.0,0.37211523]
[1765986408364,0.3608,88383.0,88376.0,0.01131523]
[1765986408569,0.3608,88382.0,88376.0,0.01131523]
[1765986409163,0.3608,88382.0,88371.0,0.00016969]
[1765986409371,0.011,88381.0,88371.0,0.00016969]
[1765986409566,0.3608,88372.0,88366.0,0.00797651]
[1765986409763,0.0113195,88363.0,88350.0,0.3608]
[1765986409968,0.3608,88356.0,88338.0,0.501]
[1765986410274,0.3608,88347.0,88334.0,0.011323]
[1765986410475,0.3608,88359.0,88339.0,0.3608]
[1765986410666,0.3608,88359.0,88330.0,0.3608]
[1765986410667,0.3608,88347.0,88338.0,0.00016969]
[1765986410871,0.00016969,88355.0,88338.0,0.00016969]
[1765986410872,0.3608,88344.0,88338.0,0.00016969]
[1765986411176,0.3608,88344.0,88309.0,0.0113262]
[1765986411177,0.3608,88339.0,88316.0,4e-08]
[1765986411371,0.0113208,88353.0,88306.0,3e-08]
[1765986411372,0.3608,88318.0,88306.0,3e-08]
[1765986411679,0.0113234,88332.0,88314.0,0.3608]
[1765986411875,0.3608,88324.0,88306.0,3e-08]
[1765986412173,0.00016979,88324.0,88317.0,0.7216]
[1765986412374,0.00016979,88324.0,88306.0,0.00016982]
[1765986412576,0.017,88300.0,88296.0,8e-08]
[1765986412776,0.3608,88308.0,88296.0,8e-08]
[1765986413080,0.3608,88330.0,88296.0,8e-08]
[1765986413282,0.3608,88322.0,88296.0,8e-08]
[1765986413488,0.0113251,88319.0,88300.0,0.00016979]
[1765986413685,0.3608,88301.0,88286.0,0.01132676]
[1765986413976,0.3608,88287.0,88286.0,6e-08]
[1765986414178,0.3608,88310.0,88281.0,0.0113299]
[1765986414376,0.3608,88298.0,88288.0,0.3608]
[1765986414582,0.011,88301.0,88297.0,0.3608]
[1765986414876,4.47e-06,88301.0,88297.0,0.3498]
[1765986415179,4.47e-06,88301.0,88290.0,0.00011361]
[1765986415180,0.3608,88318.0,88300.0,0.3608]
[1765986415373,0.3718,88321.0,88297.0,0.3608]
[1765986415570,0.3718,88321.0,88292.0,0.0113284]
[1765986415766,0.3608,88305.0,88290.0,0.00011361]
[1765986415973,0.3608,88297.0,88290.0,1e-08]
[1765986416379,0.3608,88305.0,88290.0,1e-08]
[1765986416773,0.3608,88305.0,88293.0,0.3608]
[1765986416974,0.3608,88314.0,88301.0,0.3498]
[1765986417477,0.3608,88339.0,88313.0,0.3608]
[1765986417685,0.3608,88339.0,88325.0,0.3608]
[1765986417875,0.3608,88330.0,88307.0,0.49736]
[1765986418179,0.011,88351.0,88333.0,0.0113231]
[1765986418387,0.011,88351.0,88328.0,0.3608]
[1765986418583,0.011,88351.0,88329.0,0.74656]
[1765986418774,0.3608,88355.0,88329.0,1.6415736]
[1765986419078,0.3608,88347.0,88333.0,0.00016979]
[1765986419286,0.0113227,88337.0,88333.0,9e-08]
[1765986419581,0.0113238,88329.0,88316.0,0.01132291]
[1765986419878,0.3608,88334.0,88316.0,1e-08]
[1765986420080,0.7216,88322.0,88306.0,9e-08]
[1765986420281,0.7216,88322.0,88274.0,0.02824314]
[1765986420282,0.71028221,88307.0,88296.0,7e-08]
[1765986420483,0.71028221,88307.0,88260.0,0.41820765]
[1765986420484,0.3608,88297.0,88268.0,0.28488]
[1765986420786,0.3608,88279.0,88266.0,7e-08]
[1765986420987,0.65489,88266.0,88226.0,0.3608]
[1765986421285,0.3608,88247.0,88229.0,0.3608]
[1765986421475,0.3608,88235.0,88218.0,0.3608]
[1765986421673,0.3608,88235.0,88217.0,0.01324887]
[1765986421674,0.3608,88235.0,88226.0,0.34413009]
[1765986421875,0.3608,88227.0,88196.0,0.74664]
[1765986422080,8.277e-05,88226.0,88204.0,0.0113397]
[1765986422384,0.3608,88284.0,88227.0,0.0566843]
[1765986422690,0.00016999,88264.0,88256.0,0.89502061]
[1765986422983,0.86595,88309.0,88256.0,0.90635371]
[1765986423184,0.0113293,88286.0,88256.0,0.01133061]
[1765986423480,0.011,88291.0,88256.0,0.01133061]
[1765986423681,0.011,88311.0,88256.0,0.01133061]
[1765986423682,0.05345703,88340.0,88302.0,0.0113272]
[1765986423887,0.0113216,88346.0,88304.0,0.88369]
[1765986424072,0.86595,88361.0,88313.0,0.0113257]
[1765986424275,0.0113153,88395.0,88305.0,0.33952]
[1765986424276,0.0113188,88368.0,88311.0,0.88369]
[1765986424475,0.0113188,88368.0,88305.0,0.3961538]
[1765986424476,0.0113173,88380.0,88341.0,0.0113221]
[1765986424777,0.0113178,88376.0,88345.0,0.88369]
[1765986424978,0.0113167,88385.0,88340.0,0.0113223]
[1765986425284,4e-08,88369.0,88359.0,0.0113199]
[1765986425477,4e-08,88369.0,88336.0,1.4162]
[1765986425478,0.05480341,88401.0,88368.0,0.7216]
[1765986425677,0.3608,88398.0,88381.0,0.34413]
[1765986425877,0.3608,88382.0,88342.0,0.74744]
[1765986426077,0.3608,88353.0,88323.0,0.3608]
[1765986426286,0.3608,88353.0,88312.0,0.38966357]
[1765986426287,0.3608,88325.0,88312.0,0.02886357]
[1765986426480,0.3608,88338.0,88312.0,0.02886357]
[1765986426684,0.0113261,88311.0,88276.0,0.01132804]
[1765986426888,0.0113259,88312.0,88286.0,0.01132676]
[1765986427086,0.3608,88292.0,88276.0,0.01132804]
[1765986427382,0.3381529,88292.0,88276.0,0.01132804]
[1765986427578,0.34947837,88304.0,88286.0,0.3608]
[1765986427773,0.32683895,88304.0,88288.0,0.3608]
[1765986427974,0.3608,88303.0,88288.0,0.3608]
[1765986428293,0.3608,88294.0,88286.0,4e-08]
[1765986428584,0.0113294,88286.0,88266.0,0.37212933]
[1765986428793,0.00010423,88293.0,88251.0,0.57071926]
[1765986428794,0.3608,88267.0,88251.0,0.57071926]
[1765986428977,0.0113341,88249.0,88222.0,0.3608]
[1765986429290,0.3608,88247.0,88222.0,0.3608]
[1765986429582,0.0113375,88222.0,88203.0,0.3608]
[1765986429785,0.0113375,88222.0,88200.0,0.0001]
[1765986429786,0.3608,88223.0,88200.0,0.0001]
[1765986429988,0.00013236,88222.0,88203.0,0.3608]
[1765986430180,0.3608,88216.0,88203.0,0.3608]
[1765986430492,0.3608,88204.0,88200.0,0.0001]
[1765986430681,0.34947067,88204.0,88200.0,0.0001]
[1765986430887,0.34947067,88204.0,88169.0,0.3721443]
[1765986430888,0.3608,88201.0,88169.0,0.3608]
[1765986431192,0.3608,88194.0,88177.0,0.3608]
[1765986431688,0.47677191,88190.0,88177.0,0.32746]
[1765986431889,0.34946168,88193.0,88177.0,0.32746]
[1765986432188,0.00017005,88192.0,88177.0,0.32746]
[1765986432580,9.465e-05,88191.0,88177.0,0.32746]
[1765986432783,0.3608,88190.0,88177.0,0.32746]
[1765986433089,0.3608,88181.0,88175.0,4e-08]
[1765986433307,0.0113463,88154.0,88119.0,0.89641]
[1765986433479,0.3608,88140.0,88123.0,0.0113501]
[1765986433675,0.47677191,88180.0,88133.0,0.87826621]
[1765986433975,0.86003,88202.0,88146.0,0.86847]
[1765986434179,0.86003,88202.0,88166.0,0.0113446]
[1765986434383,0.00017015,88183.0,88166.0,0.01134218]
[1765986434588,9.506e-05,88182.0,88166.0,0.01134218]
[1765986434989,0.0113435,88175.0,88165.0,2.33e-06]
[1765986435187,0.0113445,88168.0,88156.0,6e-08]
[1765986435390,8.092e-05,88174.0,88156.0,6e-08]
[1765986435588,0.011,88171.0,88156.0,6e-08]
[1765986435891,4e-08,88161.0,88146.0,0.01134475]
[1765986436092,0.011,88171.0,88153.0,0.0113463]
[1765986436290,8.092e-05,88174.0,88158.0,0.3608]
[1765986436482,8.092e-05,88174.0,88154.0,0.0113461]
[1765986436791,1.22083,88169.0,88146.0,5e-08]
[1765986436982,0.3608,88156.0,88146.0,5e-08]
[1765986437182,0.3608,88148.0,88142.0,1.5e-07]
[1765986437381,0.00011513,88155.0,88142.0,1.5e-07]
[1765986437382,0.36091513,88155.0,88142.0,1.5e-07]
[1765986437693,0.0567086,88190.0,88142.0,1.5e-07]
[1765986437694,0.3608,88180.0,88145.0,0.86847]
[1765986437882,0.3608,88180.0,88152.0,0.3608]
[1765986438082,0.3608,88180.0,88152.0,0.3498]
[1765986438083,0.3608,88170.0,88152.0,0.3498]
[1765986438287,0.3608,88170.0,88144.0,0.3498]
[1765986438591,0.3608,88180.0,88144.0,0.3498]
[1765986438592,0.3608,88168.0,88153.0,0.3608]
[1765986438778,3e-08,88169.0,88166.0,0.01134218]
[1765986439184,3e-08,88169.0,88156.0,3.54e-06]
[1765986439185,0.3608,88167.0,88156.0,3.54e-06]
[1765986439386,0.3608,88159.0,88156.0,3.54e-06]
[1765986439586,0.3608,88159.0,88136.0,9e-08]
[1765986439587,0.0113459,88157.0,88136.0,9e-08]
[1765986439787,3e-08,88169.0,88156.0,0.3608]
[1765986439999,3e-08,88169.0,88154.0,0.3608]
[1765986440187,0.3608,88188.0,88140.0,0.83947]
[1765986440383,0.3608,88164.0,88146.0,0.3608]
[1765986440689,0.82323,88163.0,88138.0,0.00017015]
[1765986440889,0.3608,88144.0,88138.0,0.00017015]
[1765986441084,0.34945911,88154.0,88138.0,0.00017015]
[1765986441291,0.33811951,88154.0,88141.0,0.3608]
[1765986441595,0.0113456,88160.0,88138.0,0.00017015]
[1765986441794,0.0113473,88146.0,88138.0,5e-08]
[1765986442100,0.011,88161.0,88138.0,0.01134835]
[1765986442101,0.011,88151.0,88138.0,0.01134835]
[1765986442285,0.0113474,88145.0,88138.0,5e-08]
[1765986442490,0.0113468,88150.0,88133.0,5e-08]
[1765986442795,0.011,88161.0,88133.0,5e-08]
[1765986442990,0.011,88171.0,88142.0,0.83947]
[1765986443189,0.011,88171.0,88150.0,0.0113466]
[1765986443497,0.00017015,88169.0,88152.0,0.00017015]
[1765986444095,5e-08,88141.0,88133.0,0.83947005]
[1765986444291,0.011,88171.0,88130.0,0.42924]
[1765986444292,0.0113447,88166.0,88130.0,0.42924]
[1765986444497,0.011,88171.0,88127.0,0.82847]
[1765986444787,0.011,88171.0,88126.0,0.00034732]
[1765986444788,0.82323,88169.0,88136.0,0.01134604]
[1765986445096,0.82323,88169.0,88144.0,5e-08]
[1765986445097,0.0113469,88149.0,88144.0,5e-08]
[1765986445290,0.0113469,88149.0,88126.0,0.00034732]
[1765986445291,0.0113476,88144.0,88126.0,0.00034732]
[1765986445488,0.82323,88149.0,88116.0,0.01134861]
[1765986445489,0.0113493,88131.0,88116.0,0.01134861]
[1765986445692,0.82323,88149.0,88116.0,0.01134861]
[1765986445904,0.47677191,88160.0,88116.0,0.01134861]
[1765986446198,0.82323,88182.0,88140.0,0.011348]
[1765986446404,1.5e-07,88147.0,88122.0,0.0113502]
[1765986446698,0.0113457,88159.0,88125.0,0.83947]
[1765986446898,0.82323,88182.0,88129.0,0.0113494]
[1765986447100,0.82323,88182.0,88135.0,0.0113486]
[1765986447400,0.47677191,88190.0,88156.0,3.54e-06]
[1765986447401,0.83423,88181.0,88156.0,3.54e-06]
[1765986447596,0.82323,88138.0,88116.0,1e-08]
[1765986447798,0.53349601,88166.0,88116.0,1e-08]
[1765986447799,0.00017015,88136.0,88118.0,0.00017015]
[1765986448003,0.00017015,88136.0,88106.0,0.0113499]
[1765986448004,0.0113487,88135.0,88108.0,0.0113521]
[1765986448307,0.36097015,88136.0,88116.0,0.3608]
[1765986448502,0.3608,88128.0,88106.0,0.0113499]
[1765986448796,0.3608,88128.0,88107.0,0.3608]
[1765986448997,0.3608,88120.0,88107.0,0.3608]
[1765986449200,0.3608,88120.0,88109.0,0.3608]
[1765986449400,8.739e-05,88127.0,88109.0,0.3608]
[1765986449401,8.739e-05,88127.0,88118.0,0.3608]
[1765986449697,0.3608,88121.0,88110.0,0.3608]
[1765986450199,0.01143709,88127.0,88096.0,0.00045119]
[1765986450200,0.011352,88110.0,88096.0,0.00045119]
[1765986450394,0.3608,88111.0,88096.0,9e-08]
[1765986450599,8.722e-05,88120.0,88110.0,0.3608]
[1765986450808,0.47677191,88140.0,88119.0,0.3608]
[1765986451097,0.3608,88156.0,88130.0,0.3608]
[1765986451297,0.34946425,88147.0,88125.0,0.3608]
[1765986451503,0.01135,88125.0,88112.0,0.3608]
[1765986451699,0.36097026,88127.0,88110.0,0.00017026]
[1765986451894,6e-08,88127.0,88110.0,0.00017026]
[1765986452501,0.3608,88156.0,88127.0,0.83947]
[1765986452694,0.3608,88196.0,88155.0,0.3608]
[1765986452894,0.82323,88199.0,88159.0,0.3608]
[1765986452895,0.0113426,88183.0,88159.0,0.3608]
[1765986453088,0.3608,88184.0,88145.0,0.83947]
[1765986453405,0.0113433,88177.0,88129.0,0.83947]
[1765986453699,0.0113416,88190.0,88162.0,0.0113451]
[1765986453900,0.0113444,88168.0,88149.0,0.22908]
[1765986454093,0.0113441,88171.0,88144.0,0.0113475]
[1765986454294,0.82323,88175.0,88131.0,0.52488]
[1765986454495,0.82323,88175.0,88116.0,0.02900694]
[1765986454496,0.0113449,88165.0,88122.0,0.0113502]
[1765986454701,0.1774,88195.0,88100.0,0.0113531]
[1765986454702,0.47677191,88190.0,88152.0,0.0113464]
[1765986454908,0.82323,88192.0,88135.0,0.00017013]
[1765986454909,0.02885038,88189.0,88142.0,0.0567385]
[1765986455093,0.011,88201.0,88157.0,0.0113458]
[1765986455298,0.05918109,88215.0,88164.0,0.0113449]
[1765986455488,0.82323,88239.0,88180.0,0.0113428]
[1765986455489,0.0113392,88209.0,88180.0,0.0113428]
[1765986455705,0.0113392,88209.0,88158.0,0.11345136]
[1765986455706,3e-08,88203.0,88195.0,0.83947]
[1765986456003,3e-08,88203.0,88186.0,0.00017013]
[1765986456004,0.07821605,88256.0,88232.0,0.83947]
[1765986456194,0.09778264,88273.0,88237.0,0.83947]
[1765986456504,0.0113274,88301.0,88228.0,1.41888]
[1765986456505,0.09778264,88284.0,88249.0,0.83947]
[1765986456700,0.13692176,88296.0,88259.0,0.83947]
[1765986456701,0.0113292,88287.0,88259.0,0.83947]
[1765986456906,0.00017002,88275.0,88258.0,0.00017002]
[1765986457098,0.00017002,88275.0,88258.0,0.00016992]
[1765986457099,0.00016992,88275.0,88258.0,0.00016992]
[1765986457293,0.0113279,88297.0,88286.0,0.01115684]
[1765986457502,0.0113279,88297.0,88232.0,0.11329326]
[1765986457503,0.0113266,88307.0,88271.0,0.00556]
[1765986457799,0.0113273,88302.0,88259.0,1.41876]
[1765986458002,0.3608,88293.0,88269.0,0.3608]
[1765986458203,0.3608,88301.0,88271.0,0.3608]
[1765986458392,0.00011228,88295.0,88278.0,0.3608]
[1765986458599,0.3608,88282.0,88277.0,0.00016992]
[1765986458794,0.011331,88273.0,88255.0,0.3608]
[1765986459006,0.3608,88262.0,88235.0,0.3721357]
[1765986459205,0.3608,88262.0,88256.0,0.01133061]
[1765986459503,0.3608,88262.0,88235.0,0.3608]
[1765986459504,0.34948221,88262.0,88235.0,0.3608]
[1765986459695,0.3608,88297.0,88266.0,0.01132933]
[1765986459898,0.09778264,88305.0,88292.0,0.3608]
[1765986460097,0.3608,88314.0,88300.0,0.3498]
[1765986460098,0.00016992,88307.0,88300.0,0.3498]
[1765986460403,0.34948353,88326.0,88301.0,0.3498]
[1765986460601,0.13692176,88344.0,88319.0,0.3608]